bitfinex/quotes_ETHUSD_20260308
["timestamp","ask_amount","ask_price","bid_price","bid_amount"]
[1772977695135,1.28620671,1943.7,1943.1,1.54607563]
[1772977695654,2.20287115,1943.8,1943.1,1.54607563]
[1772977695858,2.20283675,1943.8,1943.1,1.54607563]
[1772977696239,0.9166888,1943.8,1943.1,1.54607563]
[1772977696774,2.20283082,1943.8,1943.1,1.54607563]
[1772977697143,2.20283082,1943.8,1943.1,2.83267935]
[1772977697350,2.20283082,1943.8,1943.2,1.54607563]
[1772977698331,2.20283015,1943.8,1943.2,1.54607563]
[1772977699138,2.20283015,1943.8,1943.2,2.83259867]
[1772977699383,3.52935503,1943.8,1942.8,1.54607563]
[1772977699735,4.86935503,1943.8,1942.8,1.54607563]
[1772977700244,2.20283015,1943.8,1942.8,1.54607563]
[1772977700765,1.32133144,1943.7,1942.8,1.54607563]
[1772977701074,2.20283015,1943.8,1942.8,1.54607563]
[1772977701253,2.20283015,1943.8,1943.0,1.54607563]
[1772977702777,1.31101102,1943.7,1942.9,1.28673632]
[1772977703151,1.31101102,1943.7,1942.8,2.83283376]
[1772977703782,1.30590134,1943.5,1942.5,1.54607563]
[1772977705384,1.30590134,1943.5,1942.0,1.54761449]
[1772977705747,1.29577068,1943.3,1942.0,1.54761449]
[1772977705986,1.29075019,1943.1,1942.0,1.54761449]
[1772977706361,1.29075019,1943.1,1942.0,2.83494674]
[1772977706956,1.29075019,1943.1,1942.1,0.0011]
[1772977707454,1.29075019,1943.1,1942.1,2.26294765]
[1772977707455,1.341,1943.0,1942.1,2.26294765]
[1772977707655,1.341,1943.0,1942.1,1.54717563]
[1772977707850,1.28673632,1942.9,1942.1,1.54717563]
[1772977708299,1.28673632,1942.9,1942.1,0.0011]
[1772977708300,1.2807916,1942.8,1942.1,0.0011]
[1772977708658,1.28673632,1942.9,1942.1,2.83438242]
[1772977708852,2.62773632,1942.9,1942.1,1.54717563]
[1772977709415,1.28673632,1942.9,1942.1,1.54717563]
[1772977709578,1.341,1942.8,1942.1,1.54717563]
[1772977710099,5.14621157,1943.2,1942.2,1.54607563]
[1772977710294,1.27093638,1943.4,1942.2,1.54607563]
[1772977710498,3.89727545,1943.5,1942.3,1.54607563]
[1772977710697,1.27093638,1943.4,1942.3,1.54607563]
[1772977710894,1.28633907,1943.5,1942.3,1.54607563]
[1772977711712,2.55239989,1943.5,1942.3,1.54607563]
[1772977711912,2.54767046,1943.3,1942.3,1.54607563]
[1772977712117,2.54767046,1943.3,1942.2,1.54607563]
[1772977712118,1.261199,1943.2,1942.2,1.54607563]
[1772977712305,1.34,1943.1,1942.2,1.54607563]
[1772977715411,2.53201389,1943.0,1942.1,1.28832687]
[1772977715913,2.53201389,1943.0,1942.1,2.69568021]
[1772977716105,1.34,1942.9,1942.1,2.69568021]
[1772977716413,1.24061643,1942.8,1942.1,0.0011]
[1772977716628,5.14651123,1943.2,1942.1,0.0011]
[1772977716629,1.24061643,1943.6,1942.2,1.40732129]
[1772977717632,1.23589671,1943.4,1942.2,2.6945202]
[1772977718147,1.34,1943.3,1942.3,1.40732129]
[1772977718318,1.23120265,1943.2,1942.3,1.40732129]
[1772977719546,1.34,1943.2,1942.4,2.69438883]
[1772977720272,1.34,1943.3,1942.5,1.40732129]
[1772977721444,2.51287126,1943.5,1942.5,1.40732129]
[1772977721650,1.339,1943.4,1942.5,2.69430586]
[1772977721854,2.51287126,1943.5,1942.6,1.40732129]
[1772977722156,1.339,1943.3,1942.6,1.40732129]
[1772977722317,1.339,1943.4,1942.6,1.40732129]
[1772977722722,1.28633907,1943.5,1942.6,1.40732129]
[1772977723354,1.28620671,1943.7,1942.6,1.40732129]
[1772977723846,1.28620671,1943.7,1942.8,1.40732129]
[1772977725869,1.28620671,1943.7,1942.9,1.28673632]
[1772977726068,1.28620671,1943.7,1943.0,1.40732129]
[1772977726576,3.54083052,1943.8,1943.0,1.40732129]
[1772977727067,2.20283052,1943.8,1943.0,1.40732129]
[1772977728444,2.20283052,1943.8,1943.2,1.40732129]
[1772977728676,0.9166888,1943.8,1943.2,1.40732129]
[1772977729085,0.33306253,1943.8,1943.3,1.40732129]
[1772977730147,1.61924129,1943.8,1943.3,1.40732129]
[1772977731187,1.61924129,1943.8,1943.3,2.69376122]
[1772977731560,1.61924129,1943.8,1943.3,1.40732129]
[1772977731771,1.61924129,1943.8,1943.0,2.69396236]
[1772977732383,1.61924129,1943.8,1943.1,1.40732129]
[1772977732773,0.33306253,1943.8,1943.1,1.40732129]
[1772977733181,0.33306253,1943.8,1943.3,1.40732129]
[1772977734192,0.00153886,1944.0,1943.3,1.40732129]
[1772977734361,0.1568352,1944.2,1943.3,1.40732129]
[1772977735593,1.34253005,1944.1,1943.2,1.40732129]
[1772977736157,1.4427352,1944.2,1943.2,1.40732129]
[1772977736779,1.442737,1944.2,1943.2,1.40732129]
[1772977736979,2.78526705,1944.2,1943.2,1.40732129]
[1772977737586,1.442737,1944.2,1943.2,2.69381775]
[1772977737768,4.07726705,1944.2,1943.3,1.40732129]
[1772977738189,1.442737,1944.2,1943.3,1.40732129]
[1772977738962,2.78526705,1944.2,1943.3,1.40732129]
[1772977740203,1.34253005,1944.1,1943.3,1.40732129]
[1772977740413,1.34253005,1944.1,1943.2,1.2864853]
[1772977740605,1.34253005,1944.1,1943.1,1.28767075]
[1772977741309,1.34253005,1944.1,1943.1,2.69499204]
[1772977741517,1.34253005,1944.1,1943.1,2.69501476]
[1772977741679,1.305,1944.0,1943.1,2.69498502]
[1772977741883,2.64753005,1944.1,1943.2,1.40732129]
[1772977742514,1.28600823,1944.0,1943.3,2.69379275]
[1772977743008,1.44273813,1944.2,1943.4,1.39379091]
[1772977743217,1.28541313,1944.9,1943.5,1.39379091]
[1772977743511,1.2868862,1945.0,1943.6,1.39379091]
[1772977744610,1.2868862,1945.0,1943.8,1.3247738]
[1772977745983,2.58764006,1945.0,1943.8,1.3247738]
[1772977746513,1.30075386,1944.7,1943.5,1.3247738]
[1772977746762,2.60175386,1944.6,1943.5,1.3247738]
[1772977747051,2.60175386,1944.6,1943.5,1.3258738]
[1772977747418,1.28547922,1944.8,1943.5,1.3258738]
[1772977748557,1.2868859,1945.0,1943.7,1.3247738]
[1772977748741,0.00153886,1945.0,1943.7,1.3247738]
[1772977750570,0.00153886,1945.0,1943.9,1.3247738]
[1772977752566,0.00153886,1945.0,1944.1,1.3247738]
[1772977752769,0.00153886,1945.0,1944.3,1.3247738]
[1772977753144,5.13976347,1945.7,1944.4,1.3247738]
[1772977753342,1.284869,1945.8,1944.4,1.3247738]
[1772977753649,1.62820289,1945.9,1944.4,1.3247738]
[1772977754051,1.62820289,1945.9,1944.2,2.67004981]
[1772977754052,0.3434284,1945.9,1944.6,1.3247738]
[1772977754374,0.90415563,1947.4,1945.3,1.3247738]
[1772977754375,1.30075386,1946.8,1945.3,1.3247738]
[1772977754577,0.00153886,1947.0,1945.5,1.3247738]
[1772977754869,0.00153886,1947.0,1945.6,1.3903098]
[1772977755072,0.00153886,1947.0,1946.0,1.3247738]
[1772977755671,1.28557058,1947.0,1946.0,1.3247738]
[1772977755871,0.00153886,1947.0,1946.0,1.3247738]
[1772977756075,1.28557164,1947.0,1946.0,1.3247738]
[1772977756500,2.5863255,1947.0,1946.0,1.3247738]
[1772977756647,2.5863255,1947.0,1946.1,1.28462052]
[1772977756972,0.00153886,1947.0,1946.2,1.3247738]
[1772977757478,1.30075386,1946.8,1945.1,1.44724297]
[1772977757651,1.30075386,1946.7,1945.1,1.44724297]
[1772977758346,1.30075386,1946.5,1945.0,1.2868717]
[1772977758644,1.30075386,1946.3,1945.0,0.00153886]
[1772977760282,1.30075386,1946.1,1945.0,0.00153886]
[1772977760842,2.52869656,1945.8,1945.0,0.00153886]
[1772977761047,1.30075386,1945.7,1945.0,0.00153886]
[1772977761245,2.52869656,1945.8,1945.0,0.00153886]
[1772977761747,3.82945042,1945.8,1945.0,0.00153886]
[1772977761970,1.30075386,1945.7,1945.0,0.00153886]
[1772977763083,1.28495065,1945.6,1945.0,0.00153886]
[1772977763251,1.30075386,1945.5,1945.0,0.00153886]
[1772977763556,1.30075386,1945.5,1944.4,1.28569978]
[1772977763945,1.28495065,1945.6,1944.5,1.3247738]
[1772977764149,1.30075386,1945.5,1944.4,1.28569978]
[1772977764775,1.30075386,1945.5,1944.1,5.14361115]
[1772977764975,1.30075386,1945.3,1944.0,1.28748094]
[1772977766764,1.30075386,1945.3,1944.0,0.00153886]
[1772977766960,1.30075386,1945.1,1944.0,0.00153886]
[1772977767367,1.28521488,1945.2,1944.0,1.32631266]
[1772977769073,1.30075386,1945.2,1944.1,1.28594208]
[1772977770666,1.30075386,1945.2,1944.0,2.61227968]
[1772977770992,1.30075386,1945.2,1944.0,1.28750588]
[1772977771171,1.30075386,1945.0,1944.0,0.00153886]
[1772977773270,2.67510596,1944.9,1944.0,0.00153886]
[1772977773471,1.38969283,1944.8,1944.0,0.00153886]
[1772977773672,1.38969283,1944.8,1944.2,0.0011]
[1772977773867,1.28541313,1944.9,1944.2,0.0011]
[1772977774063,3.97610596,1944.9,1944.2,0.0011]
[1772977774299,1.38969283,1944.8,1944.0,0.00153886]
[1772977775705,1.28561143,1944.6,1944.0,0.00153886]
[1772977776470,5.14165252,1945.0,1944.0,1.35039163]
[1772977776471,1.28534704,1945.0,1944.0,1.35039163]
[1772977776800,2.69169283,1946.4,1944.4,1.34885277]
[1772977777016,2.69169283,1946.4,1944.6,1.34885277]
[1772977777017,1.28451767,1946.3,1944.6,1.34885277]
[1772977777170,0.001,1946.6,1945.2,1.34885277]
[1772977777378,0.001,1946.6,1945.3,1.34885277]
[1772977777608,1.28531333,1946.6,1945.3,1.34885277]
[1772977777795,0.001,1946.6,1945.4,1.28508275]
[1772977780013,0.001,1946.6,1945.5,1.34885277]
[1772977780509,0.001,1946.6,1945.6,1.34885277]
[1772977782207,0.001,1946.6,1945.8,1.34885277]
[1772977784099,0.001,1946.6,1945.4,6.48907865]
[1772977784303,0.001,1946.6,1945.5,1.2850167]
[1772977785201,1.39069283,1946.6,1945.5,1.2850167]
[1772977785876,2.60869283,1946.6,1945.5,1.2850167]
[1772977786378,1.28435653,1946.5,1945.5,1.2850167]
[1772977786706,1.28535653,1946.5,1945.5,1.2850167]
[1772977787803,1.28535653,1946.5,1945.5,2.63386947]
[1772977787971,1.28535653,1946.5,1945.6,1.34885277]
[1772977788178,0.001,1946.5,1945.6,1.34885277]
[1772977788372,0.001,1946.5,1945.7,1.28488461]
[1772977788579,0.001,1946.5,1945.7,2.63373738]
[1772977789198,0.001,1946.5,1945.8,1.34885277]
[1772977790515,0.001,1946.5,1945.9,2.63360532]
[1772977790891,0.001,1946.5,1945.9,1.28475255]
[1772977791218,0.001,1946.5,1946.0,1.34885277]
[1772977792377,0.001,1946.5,1946.1,1.28462052]
[1772977793812,0.001,1946.5,1946.1,2.63347329]
[1772977794388,0.001,1946.5,1945.9,1.28471946]
[1772977796226,0.001,1946.5,1945.8,1.28476892]
[1772977797098,0.001,1946.5,1945.6,1.28495065]
[1772977797428,3.841,1946.5,1945.5,2.6338213]
[1772977797924,5.2191799,1946.5,1945.5,2.6338213]
[1772977798933,1.37122617,1946.4,1945.5,1.28496853]
[1772977799111,1.28448851,1946.3,1945.3,1.28514882]
[1772977799311,1.28448851,1946.3,1945.2,2.63406154]
[1772977799312,2.65571468,1946.3,1945.2,2.63406154]
[1772977799486,1.37122617,1946.2,1945.1,5.14110017]
[1772977799685,1.37122617,1946.2,1945.1,6.48995294]
[1772977800323,1.37122617,1946.2,1945.0,1.28681982]
[1772977800481,1.28,1946.1,1945.1,1.34885277]
[1772977800684,2.65122617,1946.2,1945.1,1.34885277]
[1772977800881,1.36777206,1946.1,1945.4,0.0011]
[1772977801099,1.28468653,1946.0,1945.4,0.0011]
[1772977803145,1.28448851,1946.3,1945.4,1.21711753]
[1772977803442,1.2844745,1946.4,1945.4,1.21711753]
[1772977803604,1.28537743,1946.5,1945.4,1.21711753]
[1772977804307,0.001,1946.5,1945.4,1.21711753]
[1772977804520,1.28409946,1946.9,1945.4,0.0011]
[1772977804749,0.00153886,1947.0,1945.5,1.25467139]
[1772977805121,0.00153886,1947.0,1945.7,1.25467139]
[1772977805320,0.00153886,1947.0,1945.9,1.25467139]
[1772977806332,1.31393799,1947.0,1945.6,1.25467139]
[1772977806844,1.265,1946.9,1945.6,1.25467139]
[1772977807042,1.266,1946.9,1945.6,1.25467139]
[1772977807214,1.28415861,1946.8,1945.7,2.539556]
[1772977807410,1.28415861,1946.8,1945.8,1.25467139]
[1772977809751,2.59655774,1946.8,1945.8,2.53943993]
[1772977810048,1.28415861,1946.8,1945.8,1.28476854]
[1772977810216,5.15239913,1946.7,1945.8,1.28476854]
[1772977810928,5.15239913,1946.7,1945.6,1.28495065]
[1772977811133,1.31239913,1946.6,1945.6,1.28495065]
[1772977811324,1.28415861,1946.8,1945.6,1.28495065]
[1772977811325,5.15239913,1946.5,1945.6,1.28495065]
[1772977812436,1.28442252,1946.4,1945.5,2.5396607]
[1772977812752,1.28442252,1946.4,1945.5,1.28498931]
[1772977812753,1.284,1946.3,1945.5,1.28498931]
[1772977813266,1.284,1946.3,1945.4,1.28615346]
[1772977813419,1.31239913,1946.2,1945.4,0.0011]
[1772977814044,1.31239913,1946.2,1945.5,0.0011]
[1772977814361,1.31239913,1946.2,1945.4,0.0011]
[1772977814529,1.3091717,1946.0,1945.4,0.0011]
[1772977814921,1.29,1945.9,1945.4,0.0011]
[1772977815731,2.65664619,1945.7,1945.0,0.00153886]
[1772977816046,1.30248046,1945.6,1945.0,0.00153886]
[1772977816646,1.2850167,1945.5,1945.0,0.00153886]
[1772977816849,1.29587627,1945.4,1945.0,0.00153886]
[1772977817026,2.58225002,1945.3,1944.2,2.54053653]
[1772977817225,2.58225002,1945.3,1944.2,1.25467139]
[1772977817226,1.28925002,1945.2,1944.2,1.25467139]
[1772977817648,1.28925002,1945.2,1944.1,0.0011]
[1772977818849,1.28271956,1945.0,1944.1,0.0011]
[1772977819033,1.296,1944.9,1944.1,0.0011]
[1772977820535,1.28271956,1945.0,1944.1,0.0011]
[1772977820847,1.298,1944.9,1944.1,0.0011]
[1772977821161,1.28547922,1944.8,1944.1,0.0011]
[1772977822023,1.299,1944.7,1944.1,0.0011]
[1772977822655,2.55595909,1944.7,1944.1,0.0011]
[1772977823227,1.28561143,1944.6,1944.1,0.0011]
[1772977825561,3.84,1944.5,1944.1,0.0011]
[1772977825946,5.07814035,1944.5,1944.1,0.0011]
[1772977826147,5.07814035,1944.5,1944.0,0.00263886]
[1772977826148,1.23197666,1944.4,1944.0,0.00263886]
[1772977826930,1.23197666,1944.4,1944.2,0.0011]
[1772977827133,1.303,1944.3,1944.0,0.00263886]
[1772977827334,1.28587593,1944.2,1943.9,0.0011]
[1772977827532,1.28587593,1944.2,1943.5,0.0011]
[1772977827764,2.51066886,1944.2,1943.5,0.0011]
[1772977828360,1.28587593,1944.2,1943.5,1.25577139]
[1772977828563,1.303,1944.1,1943.5,1.25577139]
[1772977829464,1.303,1944.1,1943.7,1.25467139]
[1772977829640,1.28590412,1944.2,1943.7,1.25467139]
[1772977829965,1.28590412,1944.2,1943.5,0.0011]
[1772977830850,1.28590412,1944.2,1943.5,1.25577139]
[1772977831056,1.28590412,1944.2,1943.6,1.25467139]
[1772977831231,1.28590412,1944.2,1943.5,0.0011]
[1772977831562,5.14346812,1944.3,1943.5,0.0011]
[1772977831768,5.14346812,1944.3,1943.5,1.25577139]
[1772977833968,6.31214449,1944.3,1943.5,0.0011]
[1772977834171,5.14346812,1944.3,1943.5,0.0011]
[1772977834462,1.16867637,1944.2,1943.5,0.0011]
[1772977836070,2.44320953,1944.1,1943.5,0.0011]
[1772977836662,1.15726745,1944.0,1943.5,0.0011]
[1772977836852,1.307,1943.9,1943.5,0.0011]
[1772977837170,1.22421766,1943.8,1943.1,0.0011]
[1772977838070,3.95974303,1943.9,1943.1,0.0011]
[1772977838071,1.308,1943.9,1943.1,1.2499869]
[1772977838845,1.308,1943.9,1943.6,0.0011]
[1772977839642,2.51015974,1944.1,1943.6,0.0011]
[1772977839876,1.308,1944.0,1943.6,0.0011]
[1772977840760,1.28607438,1943.9,1943.6,0.0011]
[1772977841569,6.43401041,1944.0,1943.6,0.0011]
[1772977843087,3.84,1944.0,1943.6,1.2499869]
[1772977843276,5.126023,1944.0,1943.6,1.2499869]
[1772977843585,3.84,1944.0,1943.6,1.2499869]
[1772977843791,2.28690277,1944.2,1943.6,1.2499869]
[1772977844170,1.001,1944.2,1943.6,1.2499869]
[1772977844371,2.28688405,1944.2,1943.6,1.2499869]
[1772977844568,2.28688405,1944.2,1943.6,0.0011]
[1772977844881,3.51110171,1944.2,1943.6,0.0011]
[1772977846573,1.302,1944.1,1943.6,0.0011]
[1772977847085,2.52621766,1944.1,1943.6,0.0011]
[1772977848189,1.28600823,1944.0,1943.6,0.0011]
[1772977849170,1.305,1943.9,1943.6,0.0011]
[1772977849997,1.28587593,1944.3,1943.6,1.2499869]
[1772977850163,6.44849548,1944.6,1943.7,1.2488869]
[1772977850164,17.28644709,1944.2,1943.7,1.2488869]
[1772977850364,1.28644709,1944.3,1943.7,1.2488869]
[1772977850694,17.28644709,1944.4,1943.7,1.2488869]
[1772977851507,1.28644709,1944.3,1943.7,1.2488869]
[1772977851673,1.307,1944.2,1943.6,0.0011]
[1772977851995,3.81766475,1944.2,1943.6,0.0011]
[1772977852177,3.81766475,1944.2,1943.7,0.0011]
[1772977852178,1.28594208,1944.1,1943.7,0.0011]
[1772977852897,1.22421766,1943.9,1943.5,0.0011]
[1772977853068,1.308,1943.8,1943.5,0.0011]
[1772977854268,18.5726538,1943.7,1943.5,0.0011]
[1772977854970,22.4126538,1943.7,1943.5,0.0011]
[1772977855597,18.5726538,1943.7,1943.5,0.0011]
[1772977855772,17.28644709,1943.6,1943.4,0.0011]
[1772977856472,1.28633907,1943.5,1943.4,0.0011]
[1772977856668,18.57278616,1943.5,1943.3,0.0011]
[1772977856873,1.312,1943.4,1943.3,0.0011]
[1772977858498,2.59840526,1943.4,1943.3,0.0011]
[1772977858671,1.312,1943.4,1943.3,0.0011]
[1772977859800,2.59840526,1943.4,1943.3,0.0011]
[1772977860903,19.88485235,1943.4,1943.3,0.0011]
[1772977862600,19.88485235,1943.4,1943.1,0.0011]
[1772977862806,17.28644709,1943.3,1943.1,0.0011]
[1772977864778,1.28653766,1943.2,1943.1,0.0011]
[1772977865097,1.28644709,1943.2,1943.1,0.0011]
[1772977865299,17.28644709,1943.2,1943.1,0.0011]
[1772977865602,17.28644709,1943.2,1943.0,0.00263886]
[1772977865808,2.60847685,1943.3,1943.0,0.00263886]
[1772977865809,17.28644709,1943.1,1943.0,0.00263886]
[1772977865981,17.28644709,1943.2,1943.0,0.00263886]
[1772977866704,18.57305097,1943.1,1942.9,0.0011]
[1772977867002,18.61044709,1943.1,1942.4,1.40823025]
[1772977867907,17.28644709,1943.0,1942.4,1.40823025]
[1772977868282,5.164,1943.1,1942.4,1.40823025]
[1772977868483,6.574277,1943.1,1942.4,1.40823025]
[1772977868690,1.28673632,1942.9,1942.3,0.0011]
[1772977868891,1.410277,1942.7,1942.3,0.0011]
[1772977869280,1.410277,1942.7,1942.1,0.0011]
[1772977869281,1.410277,1942.6,1942.1,0.0011]
[1772977869475,1.410277,1942.4,1942.1,0.0011]
[1772977869975,17.28534709,1942.3,1942.1,0.0011]
[1772977870400,1.33,1942.5,1942.1,2.69657704]
[1772977871509,6.55722228,1943.0,1942.3,1.40823025]
[1772977871510,0.7570003,1942.7,1942.3,1.40823025]
[1772977871687,17.28534709,1942.9,1942.3,1.40823025]
[1772977873514,17.28534709,1942.9,1942.4,1.28706754]
[1772977874183,2.69679656,1943.3,1942.5,1.40823025]
[1772977874388,17.28534709,1943.2,1942.5,1.40823025]
[1772977875716,17.28534709,1943.2,1942.6,1.28693503]
[1772977875883,17.28534709,1943.1,1942.6,1.28693503]
[1772977876085,6.365536,1943.8,1942.8,1.40823025]
[1772977876086,1.329,1943.6,1942.8,1.40823025]
[1772977878118,1.329,1943.6,1942.9,1.28673632]
[1772977878422,0.001,1943.2,1942.9,2.69496657]
[1772977882228,0.001,1943.2,1943.0,1.40823025]
[1772977882435,4.03385452,1944.0,1943.0,1.40823025]
[1772977883135,4.03385452,1944.0,1943.2,1.40823025]
[1772977883505,2.74781586,1944.0,1943.2,1.40823025]
[1772977883827,1.33753886,1944.0,1943.2,1.40823025]
[1772977884228,0.00153886,1944.0,1943.2,1.40823025]
[1772977885723,0.00153886,1944.0,1943.4,1.40823025]
[1772977887804,0.00153886,1944.0,1943.6,1.40823025]
[1772977888236,0.00153886,1944.0,1943.6,0.75580527]
[1772977890241,0.00153886,1944.0,1943.7,2.08917902]
[1772977890542,0.001,1943.9,1943.7,2.08917902]
[1772977891853,0.001,1943.9,1943.7,1.28620671]
[1772977892012,0.001,1943.9,1943.2,1.196]
[1772977892013,1.411277,1943.9,1943.2,0.79231952]
[1772977892338,1.410277,1943.7,1943.0,0.0011]
[1772977892711,0.001,1943.9,1943.0,0.79295327]
[1772977892942,0.001,1943.9,1943.2,0.79185327]
[1772977893147,1.53221487,1943.8,1943.0,1.2011]
[1772977893825,1.53221487,1943.8,1943.0,1.98765517]
[1772977894444,1.53221487,1943.8,1943.1,1.28660388]
[1772977894616,1.53221487,1943.8,1943.1,2.06788078]
[1772977894946,1.28708994,1943.9,1943.1,2.06788078]
[1772977895451,1.28708994,1943.9,1943.2,0.77601724]
[1772977895452,0.001,1943.9,1943.2,0.77601724]
[1772977896559,0.001,1943.9,1943.3,1.28647146]
[1772977898759,1.53321487,1943.9,1943.1,1.28660388]
[1772977901150,1.53221487,1943.7,1943.0,1.28777009]
[1772977901649,1.53221487,1943.7,1943.0,0.0011]
[1772977902462,1.53221487,1943.7,1943.1,0.0011]
[1772977903051,0.001,1943.8,1943.2,2.02117973]
[1772977905032,0.001,1943.8,1943.4,1.28640526]
[1772977907078,0.001,1943.8,1943.1,2.00208158]
[1772977907362,0.001,1943.8,1943.2,0.7143777]
[1772977908452,0.001,1943.9,1943.1,1.28770388]
[1772977908453,0.001,1943.9,1943.3,0.7083477]
[1772977909351,3.0,1943.8,1943.4,1.28640526]
[1772977909738,3.0,1943.8,1943.5,0.703365]
[1772977909972,0.001,1943.9,1943.5,0.703365]
[1772977910160,1.53221487,1944.5,1943.7,0.69836887]
[1772977911347,1.53221487,1944.5,1943.8,1.28614054]
[1772977912762,1.53221487,1944.5,1943.8,2.14758923]
[1772977913169,1.53221487,1944.5,1943.9,0.85608249]
[1772977913366,1.53221487,1944.8,1944.0,2.14209072]
[1772977913568,1.53221487,1944.8,1944.1,0.85608249]
[1772977913951,0.00153886,1945.0,1944.1,0.85608249]
[1772977915052,0.00153886,1945.0,1944.3,0.84537648]
[1772977915698,0.00153886,1945.0,1944.5,0.84537648]
[1772977916060,0.00153886,1945.0,1944.4,1.28574367]
[1772977916061,1.53375373,1945.0,1944.4,1.28574367]
[1772977916506,1.53375373,1945.0,1944.1,1.28594208]
[1772977918815,1.53221487,1944.8,1943.9,5.14406981]
[1772977920760,1.53221487,1944.7,1943.9,5.14406981]
[1772977922406,1.53221487,1944.7,1943.9,1.28607438]
[1772977922603,1.53221487,1944.7,1943.8,1.28608845]
[1772977922910,1.56782718,1944.5,1943.8,1.28608845]
[1772977923139,1.56782718,1944.5,1943.6,1.205]
[1772977923400,1.56782718,1944.5,1943.7,0.80293688]
[1772977923896,1.56782718,1944.5,1943.6,1.205]
[1772977924101,1.56782718,1944.5,1943.6,2.00276239]
[1772977924298,1.56782718,1944.5,1943.7,0.79776239]
[1772977925087,2.85355301,1944.5,1943.8,1.28614054]
[1772977926185,1.61326672,1944.4,1943.8,1.28614054]
[1772977927174,2.89901137,1944.4,1943.6,2.06828786]
[1772977927593,2.89901137,1944.4,1943.6,1.28627289]
[1772977927908,2.89901137,1944.4,1943.7,0.78201497]
[1772977928107,1.61326672,1944.4,1943.7,0.78201497]
[1772977928600,2.89902006,1944.4,1943.7,0.78201497]
[1772977929501,1.61326672,1944.3,1943.8,1.28614054]
[1772977930408,1.61326672,1944.6,1943.8,1.28614054]
[1772977930902,1.61326672,1944.6,1943.7,2.06817525]
[1772977931402,1.28567755,1944.5,1943.6,5.14501311]
[1772977931705,1.61326672,1944.4,1943.6,5.14501311]
[1772977932102,1.61326672,1944.4,1943.5,5.14527087]
[1772977932404,1.61326672,1944.4,1943.7,0.0011]
[1772977934007,1.61326672,1944.4,1943.5,0.0011]
[1772977934008,1.61326672,1944.2,1943.5,0.0011]
[1772977935803,1.61326672,1944.0,1943.5,0.0011]
[1772977937504,1.61326672,1944.2,1943.5,1.1396712]
[1772977938008,1.61326672,1944.1,1943.5,1.28739528]
[1772977939687,1.61326672,1944.1,1943.5,0.0011]
[1772977939883,1.61326672,1944.1,1943.5,1.28743501]
[1772977940209,1.61326672,1943.9,1943.5,0.0011]
[1772977942785,2.89934911,1943.9,1943.5,0.0011]
[1772977945624,1.61326672,1943.9,1943.5,0.0011]
[1772977945988,1.61326672,1943.8,1943.5,0.0011]
[1772977946425,1.61326672,1943.8,1943.3,0.0011]
[1772977946951,2.89933832,1944.0,1943.3,1.09625784]
[1772977947105,2.89928983,1944.0,1943.3,1.09625784]
[1772977947423,3.84,1944.2,1943.5,1.09032379]
[1772977947586,3.0,1944.3,1943.5,1.09032379]
[1772977947990,3.0,1944.3,1943.6,0.0011]
[1772977948218,4.61326672,1944.3,1943.6,1.08657845]
[1772977948418,1.61426672,1944.0,1943.6,0.0011]
[1772977949424,4.28581389,1944.3,1943.6,0.0011]
[1772977949610,3.0,1944.3,1943.7,1.08065082]
[1772977949813,3.0,1944.3,1943.9,1.08065082]
[1772977949814,2.9324802,1944.3,1943.9,1.08065082]
[1772977950122,1.61326672,1945.1,1944.1,1.07780918]
[1772977950487,1.28525059,1945.2,1944.1,1.07780918]
[1772977951727,2.89851731,1945.2,1944.3,1.59109175]
[1772977951895,1.61480558,1945.0,1944.3,1.59109175]
[1772977953648,1.61480558,1945.0,1944.4,1.28574367]
[1772977953856,1.55246645,1944.9,1944.1,2.9663056]
[1772977954024,1.55246645,1944.9,1944.1,1.40844499]
[1772977954466,1.55246645,1944.9,1944.1,0.12251083]
[1772977954626,1.55246645,1944.9,1944.1,1.40843999]
[1772977956076,1.55246645,1944.7,1944.1,0.12251083]
[1772977956225,1.55246645,1944.7,1943.9,1.28602294]
[1772977956772,1.55246645,1944.7,1943.9,1.55788059]
[1772977957192,1.55246645,1944.7,1943.7,1.55788059]
[1772977957986,1.55246645,1944.5,1943.7,1.55788059]
[1772977958573,1.55246645,1944.5,1943.6,0.0011]
[1772977958751,1.55246645,1944.5,1943.6,1.55898059]
[1772977960869,1.55246645,1944.3,1943.6,1.28736696]
[1772977961061,1.55246645,1944.3,1943.6,1.28737217]
[1772977961582,1.55246645,1944.4,1943.7,1.55898059]
[1772977962863,1.2858098,1944.3,1943.8,1.28614054]
[1772977964388,2.83827625,1944.3,1943.7,2.84514159]
[1772977964558,1.55246645,1944.2,1943.7,0.0011]
[1772977964762,1.55246645,1944.2,1943.7,1.28730408]
[1772977965990,1.55246645,1944.2,1943.7,0.0011]
[1772977966487,1.55246645,1944.1,1943.7,0.0011]
[1772977968084,2.83832866,1944.3,1943.7,0.0011]
[1772977968298,1.55246645,1944.3,1943.7,0.0011]
[1772977968464,1.28587593,1944.2,1943.7,1.28730671]
[1772977968662,1.55246645,1944.1,1943.7,1.28730671]
[1772977969178,1.55246645,1944.1,1943.7,0.0011]
[1772977972488,2.83840921,1944.1,1943.7,0.0011]
[1772977972688,1.55246645,1944.1,1943.7,0.0011]
[1772977973396,2.83840997,1944.1,1943.7,0.0011]
[1772977973991,1.55246645,1944.0,1943.7,0.0011]
[1772977975109,1.55246645,1943.9,1943.5,0.0011]
[1772977975408,1.55246645,1943.8,1943.5,0.0011]
[1772977976193,1.55246645,1943.6,1943.5,0.0011]
[1772977976861,1.55246645,1943.6,1943.3,0.0011]
[1772977978188,1.55246645,1943.4,1943.3,0.0011]
[1772977978389,1.28633907,1943.5,1943.3,0.0011]
[1772977978992,2.83880552,1943.5,1943.3,0.0011]
[1772977979513,1.55246645,1943.4,1943.0,0.00263886]
[1772977980592,2.83892358,1943.4,1943.0,0.00263886]
[1772977980762,1.55246645,1943.3,1943.0,0.00263886]
[1772977981161,1.55246645,1943.5,1943.0,0.00263886]
[1772977983094,2.83004786,1943.4,1943.0,0.00263886]
[1772977984184,1.49292962,1943.3,1943.0,0.00263886]
[1772977985494,1.2864392,1943.4,1943.0,0.00263886]
[1772977985920,6.61916722,1943.7,1943.0,1.54663561]
[1772977986095,5.33292962,1943.7,1943.0,1.54663561]
[1772977986296,6.61914628,1943.7,1943.0,1.54663561]
[1772977986921,1.49292962,1943.6,1943.1,0.0011]
[1772977987198,1.49392962,1943.3,1943.1,0.0011]
[1772977988713,1.49392962,1943.3,1942.9,0.0011]
[1772977988714,1.49292962,1943.2,1942.9,0.0011]
[1772977989894,0.001,1943.3,1942.9,0.0011]
[1772977990081,0.001,1943.3,1942.9,1.54509675]